fUSD/lending_fUSD_20241207
["ID","MTS","AMOUNT","RATE_DAILY","PERIOD"]
[344590073,1733585432582,-1737.00684098,0.00014957,2]
[344590074,1733585432591,-549.59982078,0.00014957,2]
[344590075,1733585432600,-412.19986558,0.00014959,2]
[344590076,1733585432609,-977.06634805,0.0001496,2]
[344590077,1733585432619,-549.59982078,0.0001496,2]
[344590078,1733585432629,-977.06634805,0.00014961,2]
[344590079,1733585432638,-1737.00684098,0.00014961,2]
[344590080,1733585432648,-977.06634805,0.00014962,2]
[344590081,1733585432657,-1737.00684098,0.00014963,2]
[344590082,1733585432667,-1302.75513073,0.00014965,2]
[344590083,1733585432676,-732.79976104,0.00014965,2]
[344590084,1733585432686,-412.19986558,0.00014966,2]
[344590085,1733585432695,-1302.75513073,0.00014966,2]
[344590086,1733585432704,-977.06634805,0.00014967,2]
[344590087,1733585432714,-412.19986558,0.00014968,2]
[344590088,1733585432723,-732.79976104,0.00014971,2]
[344590089,1733585432734,-732.79976104,0.00014975,2]
[344590091,1733585432743,-412.19986558,0.00014976,2]
[344590092,1733585432753,-1302.75513073,0.00014976,2]
[344590093,1733585432762,-200.0,0.00014979,2]
[344590094,1733585432771,-1302.75513073,0.00014979,2]
[344590095,1733585432781,-1302.75513073,0.0001498,2]
[344590096,1733585432790,-412.19986558,0.0001498,2]
[344590097,1733585432799,-1290.85563213,0.0001498,2]
[344590100,1733585438100,-281.68,0.00014228,2]
[344590101,1733585438111,-281.68,0.00014754,2]
[344590102,1733585438121,-446.15120885,0.0001498,2]
[344590103,1733585438131,-732.79976104,0.00014983,2]
[344590104,1733585438141,-549.59982078,0.00014985,2]
[344590105,1733585438151,-977.06634805,0.00014987,2]
[344590106,1733585438161,-1737.00684098,0.00014988,2]
[344590107,1733585438170,-549.59982078,0.00014988,2]
[344590108,1733585438179,-549.59982078,0.00014989,2]
[344590109,1733585438189,-977.06634805,0.00014989,2]
[344590110,1733585438198,-732.79976104,0.00014991,2]
[344590111,1733585438208,-200.0,0.00014993,2]
[344590112,1733585438218,-732.79976104,0.00014994,2]
[344590113,1733585438227,-200.0,0.00014995,2]
[344590114,1733585438237,-549.59982078,0.00014997,2]
[344590115,1733585438251,-412.19986558,0.00014997,2]
[344590116,1733585438260,-1737.00684098,0.00014998,2]
[344590117,1733585438270,-200.0,0.00014999,2]
[344590118,1733585438280,-1302.75513073,0.00015,2]
[344590119,1733585438290,-420.28981743,0.00015,2]
[344590120,1733585438300,-500.0,0.00015,3]
[344590121,1733585438309,-499.9999,0.00015,4]
[344590122,1733585438319,-500.0,0.00015,2]
[344590123,1733585438328,-660.58533823,0.00015,2]
[344590124,1733585438341,-1304.10912335,0.00015,2]
[344590125,1733585438350,-500.0,0.00015011,2]
[344590126,1733585438360,-443.44478728,0.00015032,2]
[344590127,1733585438369,-952.24478937,0.00015032,2]
[344590128,1733585438387,-1547.75521063,0.00015032,2]
[344590129,1733585438397,-443.44478724,0.00015037,2]
[344590130,1733585438406,-443.44478724,0.00015041,2]
[344590131,1733585438415,-443.44478724,0.00015046,2]
[344590132,1733585438425,-443.44478724,0.0001505,2]
[344590133,1733585438436,-443.44478724,0.00015055,2]
[344590134,1733585438445,-1056.714,0.0001506,2]
[344590135,1733585438454,-172.48658176,0.0001506,2]
[344590136,1733585438464,-500.0,0.00015068,2]
[344590137,1733585438474,-500.0,0.00015068,2]
[344590138,1733585438484,-1120.95,0.00015068,2]
[344590139,1733585438493,-500.0,0.00015068,2]
[344590140,1733585438503,-500.0,0.00015068,2]
[344590142,1733585438512,-848.65,0.00015068,2]
[344590144,1733585438521,-542.72,0.00015068,2]
[344590146,1733585438530,-500.0,0.00015068,2]
[344590148,1733585438540,-500.0,0.00015068,2]
[344590150,1733585438549,-500.0,0.00015068,2]
[344590153,1733585438559,-500.0,0.00015068,2]
[344590155,1733585438568,-500.0,0.00015068,2]
[344590157,1733585438577,-251.63334217,0.000151,2]
[344590159,1733585438586,-300.0,0.00015104,2]
[344590161,1733585438596,-150.0,0.00015111,2]
[344590164,1733585438605,-150.0,0.00015111,2]
[344590167,1733585438614,-500.0,0.0001513,2]
[344590169,1733585438623,-500.0,0.0001513,2]
[344590170,1733585438632,-500.0,0.0001513,2]
[344590171,1733585438641,-201.93119187,0.0001513,2]
[344590172,1733585438650,-500.0,0.0001513,2]
[344590173,1733585438659,-500.0,0.0001513,2]
[344590174,1733585438669,-207.41,0.0001513,2]
[344590175,1733585438678,-500.0,0.0001513,2]
[344590176,1733585438688,-500.0,0.0001513,2]
[344590177,1733585438697,-206.34583958,0.0001513,2]
[344590178,1733585438706,-500.0,0.0001513,2]
[344590179,1733585438715,-1120.95,0.0001513,2]
[344590180,1733585438724,-500.0,0.0001513,2]
[344590181,1733585438733,-500.0,0.0001513,2]
[344590182,1733585438743,-848.65,0.0001513,2]
[344590183,1733585438752,-542.72,0.0001513,2]
[344590184,1733585438762,-500.0,0.0001513,2]
[344590185,1733585438771,-500.0,0.0001513,2]
[344590186,1733585438781,-230.2232904,0.0001513,2]
[344590187,1733585438792,-81.52085879,0.0001513,2]
[344590188,1733585438802,-500.0,0.0001513,2]
[344590189,1733585438811,-500.0,0.0001513,2]
[344590190,1733585438821,-500.0,0.00015131,2]
[344590191,1733585438830,-500.0,0.00015131,2]
[344590192,1733585438839,-500.0,0.00015131,2]
[344590193,1733585438849,-500.0,0.00015131,2]
[344590194,1733585438858,-215.31616316,0.00015131,2]
[344590195,1733585438869,-284.68383684,0.00015131,2]
[344590196,1733585438878,-500.0,0.00015131,2]
[344590197,1733585438888,-500.0,0.00015131,2]
[344590198,1733585438898,-500.0,0.00015131,2]
[344590199,1733585438908,-500.0,0.00015131,2]
[344590200,1733585438917,-500.0,0.00015131,2]
[344590201,1733585438927,-500.0,0.00015131,2]
[344590202,1733585438936,-500.0,0.00015131,2]
[344590203,1733585438946,-501.03524752,0.00015131,2]
[344590204,1733585438956,-500.0,0.00015131,2]
[344590205,1733585438965,-500.0,0.00015131,2]
[344590206,1733585438975,-500.0,0.00015131,2]
[344590207,1733585438985,-500.0,0.00015131,2]
[344590208,1733585438994,-500.0,0.00015131,2]
[344590209,1733585439003,-500.0,0.00015131,2]
[344590210,1733585439013,-500.93540429,0.00015131,2]
[344590211,1733585439022,-500.0,0.00015131,2]
[344590212,1733585439032,-500.0,0.00015131,2]
[344590213,1733585439042,-501.62909722,0.00015131,2]
[344590214,1733585439052,-377.13346026,0.00015131,2]
[344590215,1733585439061,-500.0,0.00015131,2]
[344590216,1733585439071,-501.05044965,0.00015131,2]
[344590217,1733585439080,-500.0,0.00015131,2]
[344590218,1733585439091,-500.0,0.00015131,2]
[344590219,1733585439101,-500.0,0.00015131,2]
[344590220,1733585439112,-500.0,0.00015131,2]
[344590221,1733585439122,-299.44,0.00015131,2]
[344590222,1733585439132,-500.0,0.00015131,2]
[344590223,1733585439141,-515.56226257,0.00015131,2]
[344590224,1733585439150,-604.61400237,0.00015131,2]
[344590225,1733585439159,-500.74952899,0.00015131,2]
[344590226,1733585439168,-499.71449786,0.00015131,2]
[344590227,1733585439178,-500.0,0.00015131,2]
[344590228,1733585439187,-500.0,0.00015131,2]
[344590229,1733585439196,-271.08180465,0.00015131,2]
[344590230,1733585439209,-228.91819535,0.00015131,2]
[344590231,1733585439219,-505.44284521,0.00015131,2]
[344590232,1733585439228,-255.37895944,0.00015131,2]
[344590233,1733585439244,-44.62104056,0.00015131,2]
[344590234,1733585439257,-500.0,0.00015131,2]
[344590235,1733585439267,-281.62966359,0.00015131,2]
[344590236,1733585439278,-218.37033641,0.00015131,2]
[344590237,1733585439288,-500.0,0.00015131,2]
[344590238,1733585439297,-500.0,0.00015131,2]
[344590239,1733585439306,-599.74,0.00015131,2]
[344590240,1733585439315,-1171.44,0.00015131,2]
[344590241,1733585439325,-1171.44,0.00015131,2]
[344590242,1733585439334,-500.0,0.00015131,2]
[344590243,1733585439343,-1171.44,0.00015131,2]
[344590244,1733585439352,-1171.44,0.00015131,2]
[344590245,1733585439361,-1171.44,0.00015131,2]
[344590246,1733585439371,-500.0,0.00015131,2]
[344590247,1733585439380,-500.0,0.00015131,2]
[344590248,1733585439390,-500.0,0.00015131,2]
[344590249,1733585439399,-500.0,0.00015131,2]
[344590250,1733585439408,-263.94748857,0.00015131,2]
[344590251,1733585439420,-500.0,0.00015131,2]
[344590252,1733585439429,-500.0,0.00015131,2]
[344590253,1733585439439,-500.0,0.00015131,2]
[344590254,1733585439449,-500.0,0.00015131,2]
[344590255,1733585439459,-500.0,0.00015131,2]
[344590256,1733585439470,-184.05988067,0.00015131,2]
[344590257,1733585439479,-568.1,0.00015131,2]
[344590258,1733585439488,-568.1,0.00015131,2]
[344590259,1733585439498,-568.1,0.00015131,2]
[344590260,1733585439507,-568.1,0.00015131,2]
[344590261,1733585439517,-568.1,0.00015131,2]
[344590262,1733585439527,-161.58864977,0.00015131,2]
[344590263,1733585439536,-777.35,0.00015131,2]
[344590264,1733585439546,-777.35,0.00015131,2]
[344590265,1733585439555,-446.01946101,0.00015131,2]
[344590266,1733585439565,-777.35,0.00015131,2]
[344590267,1733585439575,-777.35,0.00015131,2]
[344590268,1733585439585,-777.35,0.00015131,2]
[344590269,1733585439594,-1120.95,0.00015131,2]
[344590270,1733585439603,-1120.95,0.00015131,2]
[344590271,1733585439612,-1120.95,0.00015131,2]
[344590272,1733585439622,-1120.95,0.00015131,2]
[344590273,1733585439631,-1120.95,0.00015131,2]
[344590274,1733585439640,-500.0,0.00015131,2]
[344590275,1733585439649,-500.0,0.00015131,2]
[344590276,1733585439659,-500.0,0.00015131,2]
[344590277,1733585439669,-500.0,0.00015131,2]
[344590278,1733585439679,-500.0,0.00015131,2]
[344590279,1733585439688,-500.0,0.00015131,2]
[344590280,1733585439698,-500.0,0.00015131,2]
[344590281,1733585439708,-500.0,0.00015131,2]
[344590282,1733585439719,-848.65,0.00015131,2]
[344590283,1733585439729,-848.65,0.00015131,2]
[344590284,1733585439738,-848.65,0.00015131,2]
[344590285,1733585439748,-848.65,0.00015131,2]
[344590286,1733585439757,-848.65,0.00015131,2]
[344590287,1733585439771,-542.72,0.00015131,2]
[344590288,1733585439781,-542.72,0.00015131,2]
[344590289,1733585439791,-542.72,0.00015131,2]
[344590290,1733585439800,-542.72,0.00015131,2]
[344590291,1733585439810,-542.72,0.00015131,2]
[344590292,1733585439819,-500.0,0.00015131,2]
[344590293,1733585439829,-500.0,0.00015131,2]
[344590294,1733585439838,-500.0,0.00015131,2]
[344590295,1733585439848,-500.0,0.00015131,2]
[344590296,1733585439858,-500.0,0.00015131,2]
[344590297,1733585439867,-500.0,0.00015131,2]
[344590298,1733585439876,-558.33,0.00015131,2]
[344590299,1733585439886,-1066.65,0.00015131,2]
[344590300,1733585439895,-1066.65,0.00015131,2]
[344590301,1733585439904,-500.0,0.00015131,2]
[344590302,1733585439914,-1066.65,0.00015131,2]
[344590303,1733585439923,-500.0,0.00015131,2]
[344590304,1733585439932,-1066.65,0.00015131,2]
[344590305,1733585439942,-500.0,0.00015131,2]
[344590306,1733585439951,-500.0,0.00015131,2]
[344590307,1733585439960,-1066.65,0.00015131,2]
[344590309,1733585439970,-500.0,0.00015131,2]
[344590311,1733585439980,-500.0,0.00015131,2]
[344590313,1733585439990,-500.0,0.00015131,2]
[344590315,1733585439999,-500.0,0.00015131,2]
[344590317,1733585440009,-500.0,0.00015131,2]
[344590319,1733585440018,-500.0,0.00015131,2]
[344590321,1733585440028,-500.0,0.00015131,2]
[344590323,1733585440038,-500.0,0.00015131,2]
[344590326,1733585440047,-500.0,0.00015131,2]
[344590328,1733585440057,-624.69468788,0.00015131,2]
[344590330,1733585440066,-500.0,0.00015131,2]
[344590332,1733585440076,-500.0,0.00015131,2]
[344590334,1733585440086,-500.0,0.00015131,2]
[344590336,1733585440095,-500.0,0.00015131,2]
[344590338,1733585440104,-412.73,0.00015131,2]
[344590340,1733585440114,-188.26299006,0.00015131,2]
[344590342,1733585440124,-500.0,0.00015131,2]
[344590343,1733585440133,-500.0,0.00015131,2]
[344590344,1733585440144,-500.0,0.00015131,2]
[344590345,1733585440154,-500.0,0.00015131,2]
[344590346,1733585440164,-500.0,0.00015131,2]
[344590347,1733585440173,-500.0,0.00015131,2]
[344590348,1733585440183,-571.93,0.00015131,2]
[344590349,1733585440192,-571.93,0.00015131,2]
[344590350,1733585440202,-571.93,0.00015131,2]
[344590351,1733585440211,-571.93,0.00015131,2]
[344590352,1733585440223,-571.93,0.00015131,2]
[344590353,1733585440233,-571.93,0.00015131,2]
[344590354,1733585440243,-500.0,0.00015131,2]
[344590355,1733585440255,-500.0,0.00015131,2]
[344590356,1733585440265,-500.0,0.00015131,2]
[344590357,1733585440274,-500.0,0.00015131,2]
[344590358,1733585440284,-500.0,0.00015131,2]
[344590359,1733585440295,-7500.0,0.00015131,2]
[344590360,1733585440305,-7499.99999993,0.00015131,2]
[344590361,1733585440315,-608.07,0.00015131,2]
[344590362,1733585440325,-608.07,0.00015131,2]
[344590363,1733585440334,-608.07,0.00015131,2]
[344590364,1733585440343,-608.07,0.00015131,2]
[344590365,1733585440352,-608.07,0.00015131,2]
[344590366,1733585440362,-608.07,0.00015131,2]
[344590367,1733585440372,-789.87303984,0.00015132,2]
[344590368,1733585440381,-162.79660738,0.00015132,2]
[344590369,1733585440391,-37667.61164827,0.00015132,4]
[344590382,1733585440577,-699.84915,0.00015132,4]
[344590391,1733585440651,-823.431,0.00015132,4]
[344590393,1733585440662,-490.65000002,0.00015132,4]
[344590396,1733585440672,-1193.49997,0.00015132,4]
[344590398,1733585440684,-12470.46735,0.00015132,4]
[344590400,1733585440695,-582.27894862,0.00015132,4]
[344590402,1733585440706,-2601.35186538,0.00015132,4]
[344590406,1733585440731,-993.72799997,0.00015132,4]
[344590408,1733585440742,-316.9401166,0.00015132,4]
[344590414,1733585443283,-443.44478724,0.00015059,2]
[344590415,1733585443294,-78060.40765299,0.00015132,4]
[344590416,1733585443305,-3129.40285029,0.00015132,4]
[344590417,1733585443317,-1248.950005,0.00015132,4]
[344590418,1733585443440,-18113.01546192,0.00015132,4]
[344590419,1733585443451,-3576.9,0.00015132,4]
[344590420,1733585443462,-7740.05803183,0.00015132,4]
[344590421,1733585443475,-3344.59219134,0.00015132,4]
[344590422,1733585443487,-9511.21357836,0.00015132,4]
[344590423,1733585443498,-23029.95390449,0.00015132,4]
[344590424,1733585443509,-14048.9329502,0.00015132,4]
[344590425,1733585443521,-14538.16419244,0.00015132,4]
[344590426,1733585443532,-7565.95,0.00015132,4]
[344590431,1733585446310,-443.44478724,0.00015064,2]
[344590432,1733585446319,-3552.84403401,0.00015132,4]
[344590433,1733585446331,-450.74,0.00015132,4]
[344590434,1733585446550,-1352.500016,0.00015132,4]
[344590435,1733585446561,-1133.63256697,0.00015132,4]
[344590440,1733586290444,1148.7038001,0.0002,120]
[344590448,1733586632383,-155.59,0.00011858,2]
[344590449,1733586632392,-394.41,0.00013,2]
[344590450,1733586632506,-55.59,0.00013,2]
[344590451,1733586632516,-500.0,0.00013068,2]
[344590452,1733586632525,-500.0,0.00013479,2]
[344590453,1733586632537,-187.79481156,0.00013659,2]
[344590454,1733586632546,-410.65,0.00013733,2]
[344590455,1733586632556,-555.94,0.00013734,2]
[344590456,1733586632565,-1001.04,0.00013759,2]
[344590457,1733586632575,-151.11,0.00013765,2]
[344590458,1733586632584,-150.0,0.00013779,2]
[344590459,1733586632597,-250.0,0.00013793,2]
[344590460,1733586632606,-135.39888658,0.00013816,2]
[344590461,1733586632618,-114.60111342,0.00013816,2]
[344590462,1733586632627,-186.98,0.00013866,2]
[344590463,1733586632637,-824.86088698,0.00013907,2]
[344590464,1733586632649,-175.13911302,0.00013907,2]
[344590465,1733586632658,-230.47,0.00013967,2]
[344590466,1733586632669,-200.0,0.00013983,2]
[344590467,1733586632678,-150.99,0.00014104,2]
[344590468,1733586632687,-410.65,0.00014241,2]
[344590469,1733586632696,-155.59,0.00014247,2]
[344590470,1733586632705,-309.356,0.0001437,2]
[344590471,1733586632715,-435.12,0.00014378,2]
[344590472,1733586632724,-222.35,0.00014446,2]
[344590473,1733586632733,-230.47,0.00014484,2]
[344590474,1733586632742,-410.65,0.00014749,2]
[344590475,1733586632752,-200.0,0.00014956,2]
[344590476,1733586632762,-374.10831356,0.00014958,2]
[344590477,1733586632771,-200.0,0.00014959,2]
[344590478,1733586632780,-200.0,0.00014961,2]
[344590479,1733586632792,-200.0,0.00014961,2]
[344590480,1733586632801,-309.14989919,0.00014961,2]
[344590481,1733586632811,-374.10831356,0.00014961,2]
[344590482,1733586632820,-200.0,0.00014962,2]
[344590483,1733586632829,-210.43592638,0.00014963,2]
[344590484,1733586632838,-200.0,0.00014963,2]
[344590485,1733586632847,-200.0,0.00014963,2]
[344590486,1733586632856,-200.0,0.00014963,2]
[344590487,1733586632865,-309.14989919,0.00014964,2]
[344590488,1733586632875,-231.86242439,0.00014964,2]
[344590489,1733586632884,-200.0,0.00014965,2]
[344590490,1733586632894,-374.10831356,0.00014966,2]
[344590491,1733586632903,-200.0,0.00014967,2]
[344590492,1733586632912,-200.0,0.00014967,2]
[344590493,1733586632921,-210.43592638,0.00014967,2]
[344590494,1733586632930,-280.58123517,0.00014967,2]
[344590495,1733586632940,-280.58123517,0.00014968,2]
[344590496,1733586632949,-200.0,0.00014968,2]
[344590497,1733586632959,-200.0,0.00014968,2]
[344590498,1733586632968,-200.0,0.00014968,2]
[344590499,1733586632977,-280.58123517,0.00014968,2]
[344590501,1733586632986,-200.0,0.00014969,2]
[344590502,1733586632995,-200.0,0.00014972,2]
[344590503,1733586633004,-231.86242439,0.00014972,2]
[344590504,1733586633014,-309.14989919,0.00014973,2]
[344590505,1733586633023,-309.14989919,0.00014973,2]
[344590507,1733586633032,-200.0,0.00014974,2]
[344590508,1733586633043,-374.10831356,0.00014974,2]
[344590510,1733586633053,-200.0,0.00014975,2]
[344590511,1733586633063,-280.58123517,0.00014979,2]
[344590512,1733586633072,-300.0,0.00014979,2]
[344590513,1733586633082,-309.14989919,0.00014981,2]
[344590514,1733586633092,-1796.0,0.00014981,2]
[344590515,1733586633102,-231.86242439,0.00014982,2]
[344590516,1733586633112,-210.43592638,0.00014982,2]
[344590517,1733586633122,-280.58123517,0.00014984,2]
[344590518,1733586633131,-374.10831356,0.00014985,2]
[344590519,1733586633141,-200.0,0.00014985,2]
[344590520,1733586633150,-200.0,0.00014985,2]
[344590521,1733586633160,-231.86242439,0.00014986,2]
[344590522,1733586633169,-309.14989919,0.00014988,2]
[344590523,1733586633179,-231.86242439,0.00014988,2]
[344590524,1733586633188,-374.10831356,0.00014988,2]
[344590525,1733586633198,-200.0,0.00014988,2]
[344590526,1733586633208,-280.58123517,0.00014989,2]
[344590527,1733586633218,-200.0,0.00014989,2]
[344590528,1733586633227,-210.43592638,0.0001499,2]
[344590529,1733586633237,-200.0,0.00014991,2]
[344590530,1733586633247,-231.86242439,0.00014991,2]
[344590531,1733586633256,-200.0,0.00014992,2]
[344590532,1733586633265,-200.0,0.00014992,2]
[344590533,1733586633275,-200.0,0.00014992,2]
[344590534,1733586633293,-200.0,0.00014994,2]
[344590535,1733586633314,-200.0,0.00014994,2]
[344590536,1733586633324,-200.0,0.00014995,2]
[344590537,1733586633333,-210.43592638,0.00014996,2]
[344590538,1733586633536,-200.0,0.00014999,2]
[344590539,1733586633547,-210.43592638,0.00015,2]
[344590540,1733586633556,-500.0,0.00015,2]
[344590541,1733586633566,-300.0,0.00015,2]
[344590542,1733586633576,-230.47,0.00015001,2]
[344590543,1733586633586,-500.0,0.00015011,2]
[344590544,1733586633599,-150.0,0.0001502,2]
[344590545,1733586633609,-187.79481155,0.00015031,2]
[344590546,1733586633619,-177.37791492,0.00015032,2]
[344590547,1733586633630,-2500.0,0.00015032,2]
[344590548,1733586633639,-177.37791489,0.00015042,2]
[344590549,1733586633649,-974.45,0.0001505,2]
[344590550,1733586633659,-974.45,0.0001505,2]
[344590551,1733586633671,-974.45,0.0001505,2]
[344590552,1733586633681,-974.45,0.0001505,2]
[344590553,1733586633692,-974.45,0.0001505,2]
[344590554,1733586633702,-974.45,0.0001505,2]
[344590555,1733586633712,-974.45,0.0001505,2]
[344590556,1733586633722,-974.45,0.0001505,2]
[344590557,1733586633732,-974.45,0.0001505,2]
[344590558,1733586633742,-974.45,0.0001505,2]
[344590559,1733586633753,-974.45,0.0001505,2]
[344590560,1733586633762,-974.45,0.0001505,2]
[344590561,1733586633772,-974.45,0.0001505,2]
[344590562,1733586633782,-974.45,0.0001505,2]
[344590563,1733586633794,-974.45,0.0001505,2]
[344590564,1733586633804,-974.45,0.0001505,2]
[344590565,1733586633815,-974.45,0.0001505,2]
[344590566,1733586633824,-974.45,0.0001505,2]
[344590567,1733586633834,-974.45,0.0001505,2]
[344590568,1733586633843,-974.45,0.0001505,2]
[344590569,1733586633853,-974.45,0.0001505,2]
[344590570,1733586633863,-974.45,0.0001505,2]
[344590571,1733586633872,-974.45,0.0001505,2]
[344590572,1733586633882,-974.45,0.0001505,2]
[344590573,1733586633891,-974.45,0.0001505,2]
[344590574,1733586633901,-177.37791489,0.00015053,2]
[344590575,1733586633910,-177.37791489,0.00015063,2]
[344590576,1733586633920,-1046.99,0.00015073,2]
[344590577,1733586633929,-177.37791489,0.00015073,2]
[344590578,1733586633939,-300.0,0.00015082,2]
[344590579,1733586633948,-150.0,0.00015112,2]
[344590580,1733586633957,-7193.91,0.00015112,2]
[344590581,1733586633967,-435.2,0.00015123,2]
[344590582,1733586633976,-435.2,0.00015123,2]
[344590583,1733586633987,-435.2,0.00015123,2]
[344590584,1733586633996,-435.2,0.00015123,2]
[344590585,1733586634005,-435.2,0.00015123,2]
[344590586,1733586634015,-167.28816015,0.0001513,2]
[344590587,1733586634025,-617.03790051,0.00015131,2]
[344590588,1733586634034,-464.12496438,0.00015131,2]
[344590589,1733586634045,-569.96539058,0.00015131,2]
[344590590,1733586634054,-500.0,0.00015131,2]
[344590591,1733586634063,-350.33990914,0.00015131,2]
[344590592,1733586634073,-430.6324739,0.00015131,2]
[344590593,1733586634082,-500.0,0.00015131,2]
[344590594,1733586634092,-500.0,0.00015131,2]
[344590595,1733586634102,-500.0,0.00015131,2]
[344590596,1733586634112,-500.0,0.00015131,2]
[344590597,1733586634121,-500.0,0.00015131,2]
[344590598,1733586634131,-500.0,0.00015131,2]
[344590599,1733586634141,-506.86009771,0.00015131,2]
[344590600,1733586634150,-833.33,0.00015131,2]
[344590601,1733586634160,-833.33,0.00015131,2]
[344590602,1733586634169,-833.33,0.00015131,2]
[344590603,1733586634179,-833.33,0.00015131,2]
[344590604,1733586634188,-833.33,0.00015131,2]
[344590605,1733586634198,-833.33,0.00015131,2]
[344590606,1733586634207,-500.0,0.00015131,2]
[344590607,1733586634217,-500.0,0.00015131,2]
[344590608,1733586634227,-500.0,0.00015131,2]
[344590609,1733586634236,-500.0,0.00015131,2]
[344590610,1733586634246,-500.0,0.00015131,2]
[344590611,1733586634255,-500.0,0.00015131,2]
[344590612,1733586634264,-500.0,0.00015131,2]
[344590613,1733586634274,-500.0,0.00015131,2]
[344590614,1733586634283,-621.0,0.00015131,2]
[344590615,1733586634294,-501.89374881,0.00015131,2]
[344590616,1733586634304,-500.0,0.00015131,2]
[344590617,1733586634314,-500.0,0.00015131,2]
[344590618,1733586634323,-154.95,0.00015131,2]
[344590619,1733586634332,-500.05100123,0.00015131,2]
[344590620,1733586634342,-500.0,0.00015131,2]
[344590621,1733586634351,-500.0,0.00015131,2]
[344590622,1733586634361,-500.0,0.00015131,2]
[344590623,1733586634370,-500.0,0.00015131,2]
[344590624,1733586634380,-500.0,0.00015131,2]
[344590625,1733586634391,-500.0,0.00015131,2]
[344590626,1733586634401,-597.4941782,0.00015131,2]
[344590627,1733586634411,-500.0,0.00015131,2]
[344590628,1733586634420,-500.0,0.00015131,2]
[344590629,1733586634430,-500.0,0.00015131,2]
[344590630,1733586634439,-500.0,0.00015131,2]
[344590631,1733586634449,-500.0,0.00015131,2]
[344590632,1733586634459,-635.09412292,0.00015131,2]
[344590633,1733586634468,-500.0,0.00015131,2]
[344590634,1733586634478,-500.0,0.00015131,2]
[344590635,1733586634487,-500.7642867,0.00015131,2]
[344590636,1733586634497,-500.0,0.00015131,2]
[344590637,1733586634507,-500.0,0.00015131,2]
[344590638,1733586634516,-601.13,0.00015131,2]
[344590639,1733586634527,-601.13,0.00015131,2]
[344590640,1733586634537,-601.13,0.00015131,2]
[344590641,1733586634547,-601.13,0.00015131,2]
[344590642,1733586634557,-500.0,0.00015131,2]
[344590643,1733586634567,-500.0,0.00015131,2]
[344590644,1733586634576,-500.0,0.00015131,2]
[344590645,1733586634586,-500.0,0.00015131,2]
[344590646,1733586634599,-500.0,0.00015131,2]
[344590647,1733586634609,-500.0,0.00015131,2]
[344590648,1733586634619,-500.0,0.00015131,2]
[344590649,1733586634630,-500.0,0.00015131,2]
[344590650,1733586634639,-500.0,0.00015131,2]
[344590651,1733586634648,-794.01,0.00015131,2]
[344590652,1733586634658,-794.01,0.00015131,2]
[344590653,1733586634667,-794.01,0.00015131,2]
[344590654,1733586634678,-794.01,0.00015131,2]
[344590655,1733586634687,-615.4,0.00015131,2]
[344590656,1733586634696,-615.4,0.00015131,2]
[344590657,1733586634706,-615.4,0.00015131,2]
[344590658,1733586634715,-615.4,0.00015131,2]
[344590659,1733586634724,-500.0,0.00015131,2]
[344590660,1733586634733,-500.0,0.00015131,2]
[344590661,1733586634742,-500.0,0.00015131,2]
[344590662,1733586634752,-500.0,0.00015131,2]